[Event "44th Chess Olympiad Women 2022"]
[Site "Chennai"]
[Date "2022.08.07"]
[Round "9.6"]
[White "Lehaci, Miruna-Daria"]
[Black "Gaboyan, Susanna"]
[Result "0-1"]
[WhiteElo "2193"]
[BlackElo "2270"]
[Annotator "RC"]
[PlyCount "200"]
[EventDate "2022.??.??"]
[TimeControl "60"]

1. e4 {[%emt 0:00:02]} c5 {[%emt 0:00:07]} 2. Nf3 {[%emt 0:00:04]} Nc6 {
[%emt 0:00:06]} 3. Bc4 {[%emt 0:00:04]} e6 {[%emt 0:00:56]} 4. O-O {[%emt 0:00:
00]} d5 {[%emt 0:00:45]} 5. Bb5 {[%emt 0:02:44]} dxe4 {[%emt 0:01:28]} 6. Ne5 {
[%emt 0:00:04]} Qc7 {[%emt 0:01:24]} 7. Nxc6 {[%emt 0:00:31]} bxc6 {[%emt 0:00:
00]} 8. Bc4 {[%emt 0:00:22]} Bd6 {[%emt 0:00:31]} 9. h3 {[%emt 0:01:32]} f5 {
[%emt 0:04:01]} 10. d3 {[%emt 0:03:56]} Nf6 {[%emt 0:02:35]} 11. Bg5 {[%emt 0:
00:00]} exd3 {[%emt 0:03:09]} 12. Bxf6 {[%emt 0:06:36]} dxc2 {[%emt 0:01:01]}
13. Qxc2 {[%emt 0:08:46]} gxf6 {[%emt 0:00:15]} 14. Re1 {[%emt 0:00:34]} Be5 {
[%emt 0:02:49]} 15. Nd2 {[%emt 0:02:29]} Rg8 {[%emt 0:09:04]} 16. Bf1 {[%emt 0:
00:00]} Bd4 {[%emt 0:09:44]} 17. Qxf5 {[%emt 0:04:14]} e5 {[%emt 0:05:37]} 18.
Qh5+ {[%emt 0:02:00]} Qf7 {[%emt 0:03:12]} 19. Qf3 {[%emt 0:01:11]} Kf8 {
[%emt 0:12:11]} 20. Bc4 {[%emt 0:13:42]} Be6 {[%emt 0:00:38]} 21. Bxe6 {
[%emt 0:01:14]} Qxe6 {[%emt 0:00:18]} 22. Ne4 {[%emt 0:00:15]} Ke7 {[%emt 0:00:
00]} 23. Rac1 {[%emt 0:04:59]} c4 {[%emt 0:01:16]} 24. Qa3+ {[%emt 0:03:16]} c5
{[%emt 0:05:44]} 25. Qf3 {[%emt 0:10:00]} Rab8 {[%emt 0:01:52]} 26. Rc2 {
[%emt 0:05:18]} Rg6 {[%emt 0:05:27]} 27. Ng3 {[%emt 0:02:37]} Kf7 {[%emt 0:00:
00]} 28. Kh2 {[%emt 0:00:35]} a5 {[%emt 0:07:32]} 29. Re4 {[%emt 0:04:42]} Qd5
{[%emt 0:02:08]} 30. Qh5 {[%emt 0:01:22]} Kg8 {[%emt 0:00:24]} 31. Rg4 {
[%emt 0:01:31]} Qf7 {[%emt 0:02:48]} 32. Nf5 {[%emt 0:00:35]} Kh8 {[%emt 0:00:
00]} 33. Nd6 {[%emt 0:08:04]} Qg8 {[%emt 0:00:28]} 34. Qh4 {[%emt 0:02:23]}
Rxg4 {[%emt 0:01:04]} 35. hxg4 {[%emt 0:00:12]} Qg6 {[%emt 0:00:14]} 36. Re2 {
[%emt 0:00:35]} Rb4 {[%emt 0:03:36]} 37. Qh3 {[%emt 0:02:54]} Kg7 {[%emt 0:00:
00]} 38. Nf5+ {[%emt 0:00:29]} Kf8 {[%emt 0:00:08]} 39. Qf3 {[%emt 0:00:29]}
Rb8 {[%emt 0:01:35]} 40. Qc6 {[%emt 0:00:19]} Re8 {[%emt 0:00:37]} 41. Qd6+ {
[%emt 0:12:55]} Kg8 {[%emt 0:04:02]} 42. Qd7 {[%emt 0:07:51]} Kh8 {[%emt 0:00:
00]} 43. g3 {[%emt 0:01:11]} Rf8 {[%emt 0:00:45]} 44. Qd6 {[%emt 0:01:20]} Qf7
{[%emt 0:00:47]} 45. Rc2 {[%emt 0:02:54]} Rg8 {[%emt 0:01:06]} 46. Nh6 {
[%emt 0:02:31]} Qf8 {[%emt 0:01:05]} 47. Nf5 {[%emt 0:00:53]} Qxd6 {[%emt 0:00:
00]} 48. Nxd6 {[%emt 0:00:03]} Rxg4 {[%emt 0:02:13]} 49. Rxc4 {[%emt 0:00:05]}
Rg8 {[%emt 0:01:40]} 50. Rc2 {[%emt 0:00:27]} a4 {[%emt 0:02:51]} 51. Ne4 {
[%emt 0:01:47]} Rb8 {[%emt 0:04:14]} 52. Kg2 {[%emt 0:00:41]} f5 {[%emt 0:00:
00]} 53. Nc3 {[%emt 0:03:33]} Rb4 {[%emt 0:01:48]} 54. Nd1 {[%emt 0:01:08]} a3
{[%emt 0:03:29]} 55. bxa3 {[%emt 0:01:01]} Ra4 {[%emt 0:00:50]} 56. Ne3 {
[%emt 0:00:33]} Bxe3 {[%emt 0:01:20]} 57. fxe3 {[%emt 0:00:04]} Rxa3 {[%emt 0:
00:00]} 58. Rxc5 {[%emt 0:00:41]} Rxe3 {[%emt 0:00:17]} 59. a4 {[%emt 0:00:10]}
Kg7 {[%emt 0:00:30]} 60. Kf2 {[%emt 0:01:32]} Re4 {[%emt 0:00:13]} 61. a5 {
[%emt 0:00:14]} Kf6 {[%emt 0:00:14]} 62. Rc8 {[%emt 0:01:06]} Ra4 {[%emt 0:00:
00]} 63. Ra8 {[%emt 0:00:05]} Ra2+ {[%emt 0:01:37]} 64. Ke3 {[%emt 0:00:03]}
Ra3+ {[%emt 0:00:04]} 65. Kf2 {[%emt 0:00:04]} Ke6 {[%emt 0:00:53]} 66. a6 {
[%emt 0:01:38]} Kd5 {[%emt 0:00:06]} 67. Ra7 {[%emt 0:01:01]} h6 {[%emt 0:00:
00]} 68. Rd7+ {[%emt 0:00:19]} Ke4 {[%emt 0:00:02]} 69. Rd6 {[%emt 0:00:04]}
Ra2+ {[%emt 0:01:08]} 70. Kg1 {[%emt 0:00:58]} Kf3 {[%emt 0:00:24]} 71. Rf6 {
[%emt 0:00:51]} Kxg3 {[%emt 0:01:47]} 72. Rxf5 {[%emt 0:00:04]} Rxa6 {[%emt 0:
00:00]} 73. Kf1 {[%emt 0:00:14]} Re6 {[%emt 0:00:45]} 74. Ke2 {[%emt 0:00:09]}
Kg4 {[%emt 0:00:06]} 75. Rf8 {[%emt 0:00:14]} h5 {[%emt 0:00:18]} 76. Ke3 {
[%emt 0:00:09]} e4 {[%emt 0:01:08]} 77. Rg8+ {[%emt 0:00:08]} Kh3 {[%emt 0:00:
00]} 78. Rg5 {[%emt 0:00:36]} h4 {[%emt 0:00:23]} 79. Rg8 {[%emt 0:00:05]} Kh2
{[%emt 0:00:38]} 80. Rh8 {[%emt 0:00:07]} h3 {[%emt 0:00:29]} 81. Rg8 {[%emt 0:
00:00]} Kh1 {[%emt 0:00:55]} 82. Rh8 {[%emt 0:00:03]} Kg2 {[%emt 0:00:29]} 83.
Rg8+ {[%emt 0:00:04]} Kf1 {[%emt 0:00:31]} 84. Rh8 {[%emt 0:00:06]} Ra6 {
[%emt 0:00:22]} 85. Kxe4 {[%emt 0:00:11]} Ra3 {[%emt 0:00:05]} 86. Kf4 {
[%emt 0:02:17]} Kg2 {[%emt 0:00:02]} 87. Rg8+ {[%emt 0:01:07]} Kf2 {[%emt 0:00:
00]} 88. Rh8 {[%emt 0:00:44]} Ra4+ {[%emt 0:00:04]} 89. Kf5 {[%emt 0:01:47]}
Kg3 {[%emt 0:00:06]} 90. Rg8+ {[%emt 0:00:24]} Kf3 {[%emt 0:00:05]} 91. Rh8 {
[%emt 0:00:16]} Ra5+ {[%emt 0:00:22]} 92. Kf6 {[%emt 0:00:11]} Kg2 {[%emt 0:00:
00]} 93. Rg8+ {[%emt 0:00:24]} Kh1 {[%emt 0:00:11]} 94. Rg3 {[%emt 0:01:02]} h2
{[%emt 0:00:36]} 95. Rg7 {[%emt 0:00:35]} Ra1 {[%emt 0:01:09]} 96. Kf5 {
[%emt 0:01:30]} Rg1 {[%emt 0:00:05]} 97. Ra7 {[%emt 0:00:43]} Rf1+ {[%emt 0:00:
00]} 98. Ke4 {[%emt 0:00:18]} Kg2 {[%emt 0:00:16]} 99. Rg7+ {[%emt 0:00:35]}
Kf2 {[%emt 0:00:06]} 100. Rf7+ {[%emt 0:00:31]} Ke2 {[%emt 0:00:05]} 0-1

[Event "44th Chess Olympiad Women 2022"]
[Site "Chennai"]
[Date "2022.08.07"]
[Round "9.6"]
[White "Mkrtchyan, Mariam"]
[Black "Cosma, Elena-Luminita"]
[Result "1-0"]
[WhiteElo "2285"]
[BlackElo "2248"]
[Annotator "RC"]
[PlyCount "213"]
[EventDate "2022.??.??"]
[TimeControl "60"]

1. d4 {[%emt 0:00:03]} d5 {[%emt 0:00:09]} 2. c4 {[%emt 0:00:16]} e6 {[%emt 0:
00:00]} 3. Nf3 {[%emt 0:00:04]} Nf6 {[%emt 0:00:11]} 4. g3 {[%emt 0:00:04]} Be7
{[%emt 0:00:11]} 5. Bg2 {[%emt 0:00:11]} O-O {[%emt 0:00:08]} 6. O-O {[%emt 0:
00:00]} dxc4 {[%emt 0:00:09]} 7. Qc2 {[%emt 0:00:03]} a6 {[%emt 0:00:15]} 8. a4
{[%emt 0:00:05]} Bd7 {[%emt 0:00:36]} 9. Qxc4 {[%emt 0:01:13]} Bc6 {[%emt 0:00:
00]} 10. Bf4 {[%emt 0:00:07]} Bd6 {[%emt 0:00:27]} 11. Qc1 {[%emt 0:00:06]} a5
{[%emt 0:00:16]} 12. Nc3 {[%emt 0:00:49]} Na6 {[%emt 0:04:57]} 13. Rd1 {
[%emt 0:00:05]} Nb4 {[%emt 0:05:29]} 14. Bg5 {[%emt 0:00:51]} Be7 {[%emt 0:00:
00]} 15. Bxf6 {[%emt 0:04:24]} Bxf6 {[%emt 0:00:06]} 16. e4 {[%emt 0:00:04]} g6
{[%emt 0:03:39]} 17. Qd2 {[%emt 0:04:55]} Qe7 {[%emt 0:14:39]} 18. Qe2 {
[%emt 0:07:40]} Bg7 {[%emt 0:06:12]} 19. Qc4 {[%emt 0:03:12]} Rfd8 {[%emt 0:00:
00]} 20. Rd2 {[%emt 0:04:01]} b6 {[%emt 0:07:35]} 21. Re1 {[%emt 0:21:44]} Bb7
{[%emt 0:09:55]} 22. d5 {[%emt 0:01:57]} e5 {[%emt 0:02:55]} 23. Bf1 {[%emt 0:
00:00]} Na6 {[%emt 0:08:07]} 24. Qa2 {[%emt 0:05:28]} Qf6 {[%emt 0:01:16]} 25.
Kg2 {[%emt 0:00:50]} Bh6 {[%emt 0:02:23]} 26. Rdd1 {[%emt 0:00:39]} Bf8 {
[%emt 0:02:02]} 27. Bc4 {[%emt 0:03:04]} Bc5 {[%emt 0:01:24]} 28. Rd2 {[%emt 0:
00:00]} Nb4 {[%emt 0:00:43]} 29. Qb3 {[%emt 0:00:16]} Kg7 {[%emt 0:02:32]} 30.
Red1 {[%emt 0:01:03]} Qe7 {[%emt 0:02:01]} 31. Nb5 {[%emt 0:04:06]} f6 {
[%emt 0:02:00]} 32. Ne1 {[%emt 0:02:32]} Ba6 {[%emt 0:01:03]} 33. Nc3 {[%emt 0:
00:00]} Bc8 {[%emt 0:01:19]} 34. f3 {[%emt 0:02:08]} Bd7 {[%emt 0:00:57]} 35.
Nd3 {[%emt 0:02:06]} Nxd3 {[%emt 0:01:26]} 36. Rxd3 {[%emt 0:00:27]} Be8 {
[%emt 0:00:53]} 37. Bb5 {[%emt 0:02:02]} Bf7 {[%emt 0:00:43]} 38. Qc2 {[%emt 0:
00:00]} Rh8 {[%emt 0:00:56]} 39. Ne2 {[%emt 0:01:35]} Rad8 {[%emt 0:00:29]} 40.
Nc1 {[%emt 0:02:49]} Bd6 {[%emt 0:00:25]} 41. Nb3 {[%emt 0:34:10]} g5 {[%emt 0:
00:00]} 42. Nd2 {[%emt 0:00:00]} Bg6 {[%emt 0:06:40]} 43. Rc3 {[%emt 0:00:00]}
Bc5 {[%emt 0:12:55]} 44. Nc4 {[%emt 0:00:00]} Ra8 {[%emt 0:01:19]} 45. Bc6 {
[%emt 0:00:00]} Raf8 {[%emt 0:00:10]} 46. Rcd3 {[%emt 0:00:00]} Bd4 {[%emt 0:
00:00]} 47. Qe2 {[%emt 0:00:00]} Rd8 {[%emt 0:00:59]} 48. Na3 {[%emt 0:00:00]}
Bc5 {[%emt 0:00:25]} 49. Nb5 {[%emt 0:00:00]} Rhf8 {[%emt 0:00:12]} 50. g4 {
[%emt 0:00:00]} h5 {[%emt 0:00:30]} 51. Nc3 {[%emt 0:00:00]} Rf7 {[%emt 0:00:
00]} 52. h3 {[%emt 0:00:00]} h4 {[%emt 0:00:28]} 53. Nb5 {[%emt 0:00:00]} Kh7 {
[%emt 0:00:29]} 54. Rc1 {[%emt 0:00:00]} Rg7 {[%emt 0:00:17]} 55. Rdc3 {
[%emt 0:00:00]} Bb4 {[%emt 0:01:01]} 56. R3c2 {[%emt 0:00:00]} Rb8 {[%emt 0:00:
00]} 57. Na7 {[%emt 0:00:00]} Bd6 {[%emt 0:00:20]} 58. Qa6 {[%emt 0:00:00]} Qf8
{[%emt 0:00:16]} 59. Bb7 {[%emt 0:00:13]} Be8 {[%emt 0:00:35]} 60. Rc4 {
[%emt 0:01:24]} Bd7 {[%emt 0:00:25]} 61. Bc6 {[%emt 0:00:42]} Bc8 {[%emt 0:00:
00]} 62. Qb5 {[%emt 0:00:25]} Qh8 {[%emt 0:00:50]} 63. Qb3 {[%emt 0:01:02]} Ba6
{[%emt 0:00:15]} 64. R4c2 {[%emt 0:01:23]} Qf8 {[%emt 0:00:07]} 65. Bb5 {
[%emt 0:00:13]} Ra8 {[%emt 0:00:29]} 66. Nc6 {[%emt 0:01:27]} Bb7 {[%emt 0:00:
00]} 67. Qd3 {[%emt 0:01:16]} Bxc6 {[%emt 0:00:26]} 68. dxc6 {[%emt 0:00:13]}
Rd8 {[%emt 0:00:20]} 69. Bc4 {[%emt 0:00:17]} Qe7 {[%emt 0:00:11]} 70. Bd5 {
[%emt 0:00:25]} Bb4 {[%emt 0:00:26]} 71. Qb3 {[%emt 0:01:46]} Rd6 {[%emt 0:00:
00]} 72. Rc4 {[%emt 0:01:27]} Kh6 {[%emt 0:01:04]} 73. Rxb4 {[%emt 0:03:18]}
axb4 {[%emt 0:00:06]} 74. Rc4 {[%emt 0:00:40]} f5 {[%emt 0:01:35]} 75. gxf5 {
[%emt 0:00:30]} g4 {[%emt 0:00:06]} 76. Qe3+ {[%emt 0:01:04]} Kh7 {[%emt 0:00:
00]} 77. fxg4 {[%emt 0:00:09]} Qd8 {[%emt 0:00:41]} 78. Qd2 {[%emt 0:00:08]}
Rf7 {[%emt 0:01:22]} 79. b3 {[%emt 0:02:41]} Kh8 {[%emt 0:00:13]} 80. Kh2 {
[%emt 0:01:16]} Rf8 {[%emt 0:00:20]} 81. Rc2 {[%emt 0:01:00]} Kg7 {[%emt 0:00:
00]} 82. Rc1 {[%emt 0:00:24]} Kh7 {[%emt 0:00:23]} 83. Rd1 {[%emt 0:00:34]} Qe7
{[%emt 0:01:59]} 84. Qxb4 {[%emt 0:01:07]} Rfd8 {[%emt 0:00:34]} 85. Qc3 {
[%emt 0:00:30]} Rxd5 {[%emt 0:00:26]} 86. exd5 {[%emt 0:00:26]} e4 {[%emt 0:00:
00]} 87. f6 {[%emt 0:00:28]} Qd6+ {[%emt 0:00:13]} 88. Kg2 {[%emt 0:00:04]} Kg6
{[%emt 0:00:17]} 89. Qe3 {[%emt 0:01:00]} Qe5 {[%emt 0:00:47]} 90. Rd4 {
[%emt 0:00:07]} Rxd5 {[%emt 0:00:39]} 91. Qxe4+ {[%emt 0:00:44]} Qxe4+ {
[%emt 0:00:04]} 92. Rxe4 {[%emt 0:00:02]} Kxf6 {[%emt 0:00:06]} 93. b4 {
[%emt 0:00:45]} b5 {[%emt 0:00:46]} 94. axb5 {[%emt 0:00:31]} Rxb5 {[%emt 0:00:
00]} 95. Kf3 {[%emt 0:00:18]} Rb6 {[%emt 0:00:36]} 96. Kf4 {[%emt 0:00:37]}
Rxc6 {[%emt 0:00:24]} 97. g5+ {[%emt 0:00:00]} Kg6 {[%emt 0:00:12]} 98. Kg4 {
[%emt 0:00:01]} Rc1 {[%emt 0:01:05]} 99. Kxh4 {[%emt 0:00:04]} c5 {[%emt 0:00:
00]} 100. Re6+ {[%emt 0:00:30]} Kf7 {[%emt 0:00:31]} 101. Rf6+ {[%emt 0:00:04]}
Kg7 {[%emt 0:00:04]} 102. b5 {[%emt 0:00:18]} Rb1 {[%emt 0:00:13]} 103. b6 {
[%emt 0:00:03]} Rb3 {[%emt 0:00:13]} 104. Rc6 {[%emt 0:00:30]} Kh7 {[%emt 0:00:
00]} 105. Kg4 {[%emt 0:00:06]} c4 {[%emt 0:00:39]} 106. Rc7+ {[%emt 0:00:14]}
Kg6 {[%emt 0:00:16]} 107. h4 {[%emt 0:00:02]} 1-0

[Event "44th Chess Olympiad Women 2022"]
[Site "Chennai"]
[Date "2022.08.07"]
[Round "9.7"]
[White "Eizaguerri Floris, Maria"]
[Black "Citra, Dewi Ardhiani Anast"]
[Result "0-1"]
[WhiteElo "2176"]
[BlackElo "2257"]
[Annotator "RC"]
[PlyCount "48"]
[EventDate "2022.??.??"]
[TimeControl "60"]

1. e4 {[%emt 0:00:02]} d5 {[%emt 0:00:17]} 2. exd5 {[%emt 0:00:09]} Nf6 {
[%emt 0:00:08]} 3. Bb5+ {[%emt 0:01:31]} Bd7 {[%emt 0:00:18]} 4. Bc4 {[%emt 0:
00:00]} Bg4 {[%emt 0:00:21]} 5. f3 {[%emt 0:00:13]} Bf5 {[%emt 0:00:11]} 6. Nc3
{[%emt 0:02:28]} Nbd7 {[%emt 0:00:39]} 7. g4 {[%emt 0:07:52]} Nb6 {[%emt 0:00:
00]} 8. Qe2 {[%emt 0:04:24]} Bc8 {[%emt 0:05:32]} 9. Qd3 {[%emt 0:02:34]} Nxc4
{[%emt 0:04:13]} 10. Qxc4 {[%emt 0:00:09]} e6 {[%emt 0:02:39]} 11. dxe6 {
[%emt 0:01:44]} Bxe6 {[%emt 0:03:29]} 12. Qe2 {[%emt 0:13:32]} Nd5 {[%emt 0:00:
00]} 13. Nxd5 {[%emt 0:12:05]} Qxd5 {[%emt 0:00:06]} 14. Nh3 {[%emt 0:00:33]}
O-O-O {[%emt 0:01:15]} 15. Nf2 {[%emt 0:13:18]} h5 {[%emt 0:04:02]} 16. d3 {
[%emt 0:04:22]} hxg4 {[%emt 0:08:39]} 17. fxg4 {[%emt 0:00:06]} f5 {[%emt 0:00:
00]} 18. Bd2 {[%emt 0:13:21]} Bc5 {[%emt 0:06:17]} 19. O-O-O {[%emt 0:05:04]}
Qxa2 {[%emt 0:02:58]} 20. Bc3 {[%emt 0:00:15]} Rhe8 {[%emt 0:03:38]} 21. Rhe1 {
[%emt 0:04:43]} f4 {[%emt 0:08:21]} 22. d4 {[%emt 0:01:52]} Qa1+ {[%emt 0:00:
00]} 23. Kd2 {[%emt 0:00:03]} Bxd4 {[%emt 0:00:22]} 24. Qd3 {[%emt 0:03:11]}
Bxc3+ {[%emt 0:00:51]} 0-1

[Event "44th Chess Olympiad Women 2022"]
[Site "Chennai"]
[Date "2022.08.07"]
[Round "9.7"]
[White "Mariroh, Fariha"]
[Black "Calzetta Ruiz, Monica"]
[Result "0-1"]
[WhiteElo "1839"]
[BlackElo "2230"]
[Annotator "RC"]
[PlyCount "104"]
[EventDate "2022.??.??"]
[TimeControl "60"]

1. e4 {[%emt 0:00:03]} c5 {[%emt 0:00:09]} 2. Nf3 {[%emt 0:00:07]} d6 {[%emt 0:
00:00]} 3. d4 {[%emt 0:00:09]} cxd4 {[%emt 0:00:06]} 4. Nxd4 {[%emt 0:00:06]}
Nf6 {[%emt 0:00:05]} 5. Nc3 {[%emt 0:00:09]} g6 {[%emt 0:00:11]} 6. Be3 {
[%emt 0:00:40]} Bg7 {[%emt 0:00:16]} 7. f3 {[%emt 0:00:26]} O-O {[%emt 0:00:26]
} 8. Qd2 {[%emt 0:00:37]} Nc6 {[%emt 0:00:09]} 9. g4 {[%emt 0:00:28]} Be6 {
[%emt 0:02:55]} 10. Nxe6 {[%emt 0:02:35]} fxe6 {[%emt 0:00:07]} 11. Be2 {
[%emt 0:06:04]} d5 {[%emt 0:24:16]} 12. O-O-O {[%emt 0:20:02]} d4 {[%emt 0:00:
00]} 13. Bxd4 {[%emt 0:02:51]} Nxe4 {[%emt 0:00:35]} 14. fxe4 {[%emt 0:13:26]}
Nxd4 {[%emt 0:01:13]} 15. Bc4 {[%emt 0:10:22]} Rc8 {[%emt 0:02:28]} 16. Bb3 {
[%emt 0:11:19]} Nxb3+ {[%emt 0:19:06]} 17. axb3 {[%emt 0:00:17]} Qa5 {[%emt 0:
00:00]} 18. Nb1 {[%emt 0:15:20]} Qa2 {[%emt 0:04:34]} 19. c3 {[%emt 0:03:47]}
Qxb3 {[%emt 0:00:39]} 20. h4 {[%emt 0:04:10]} Be5 {[%emt 0:01:43]} 21. Rhf1 {
[%emt 0:02:45]} b5 {[%emt 0:04:02]} 22. Rxf8+ {[%emt 0:03:09]} Rxf8 {[%emt 0:
00:00]} 23. Qc2 {[%emt 0:00:34]} Qc4 {[%emt 0:05:43]} 24. Na3 {[%emt 0:00:35]}
Qc6 {[%emt 0:02:03]} 25. Kb1 {[%emt 0:00:59]} Rf4 {[%emt 0:02:08]} 26. h5 {
[%emt 0:00:27]} Rxg4 {[%emt 0:02:33]} 27. hxg6 {[%emt 0:00:06]} hxg6 {[%emt 0:
00:00]} 28. Qd3 {[%emt 0:01:21]} Qxe4 {[%emt 0:02:46]} 29. Nxb5 {[%emt 0:00:39]
} a6 {[%emt 0:00:37]} 30. Qxe4 {[%emt 0:00:44]} Rxe4 {[%emt 0:00:04]} 31. Nd4 {
[%emt 0:00:18]} Bxd4 {[%emt 0:00:49]} 32. cxd4 {[%emt 0:00:01]} Kg7 {[%emt 0:
00:00]} 33. Kc2 {[%emt 0:00:12]} e5 {[%emt 0:02:46]} 34. d5 {[%emt 0:00:28]} a5
{[%emt 0:03:31]} 35. Ra1 {[%emt 0:01:21]} a4 {[%emt 0:00:12]} 36. Kd3 {[%emt 0:
00:00]} Rd4+ {[%emt 0:00:16]} 37. Ke3 {[%emt 0:00:06]} g5 {[%emt 0:00:45]} 38.
Kf3 {[%emt 0:00:55]} Kg6 {[%emt 0:00:26]} 39. Kg3 {[%emt 0:00:12]} Kf5 {
[%emt 0:01:33]} 40. Rf1+ {[%emt 0:00:27]} Rf4 {[%emt 0:00:38]} 41. Ra1 {
[%emt 0:31:01]} g4 {[%emt 0:31:00]} 42. Rc1 {[%emt 0:00:00]} Rb4 {[%emt 0:00:
00]} 43. Rc2 {[%emt 0:00:00]} Rb3+ {[%emt 0:00:00]} 44. Kg2 {[%emt 0:00:00]} e4
{[%emt 0:00:00]} 45. Kg1 {[%emt 0:00:00]} Ke5 {[%emt 0:00:00]} 46. Rc4 {
[%emt 0:00:00]} Rxb2 {[%emt 0:00:00]} 47. Rxa4 {[%emt 0:00:00]} Kf4 {[%emt 0:
00:00]} 48. Ra8 {[%emt 0:00:00]} e3 {[%emt 0:00:00]} 49. Kf1 {[%emt 0:00:42]}
g3 {[%emt 0:00:00]} 50. Rf8+ {[%emt 0:02:33]} Ke4 {[%emt 0:00:00]} 51. Re8 {
[%emt 0:00:17]} e2+ {[%emt 0:00:00]} 52. Ke1 {[%emt 0:00:10]} Kd3 {[%emt 0:00:
00]} 0-1

[Event "44th Chess Olympiad Women 2022"]
[Site "Chennai"]
[Date "2022.08.07"]
[Round "9.7"]
[White "Matnadze, Ana"]
[Black "Aulia, Medina Warda"]
[Result "0-1"]
[WhiteElo "2406"]
[BlackElo "2374"]
[Annotator "TA"]
[PlyCount "102"]
[EventDate "2022.??.??"]
[TimeControl "60"]

{[%evp 10,102,29,14,38,25,19,0,-6,0,-8,-39,-31,-40,-9,-16,-9,-56,-12,-10,-15,
-19,-18,-15,0,-7,-26,-92,-81,-152,-63,-62,-84,-73,-80,-62,-71,-66,-52,-203,
-184,-225,-234,-233,-219,-247,-241,-429,-432,-436,-418,-400,-120,-120,-39,-37,
-11,-235,-229,-516,-493,-495,-498,-635,-508,-518,-510,-491,-477,-996,-983,
-1116,-1114,-1077,-858,-29951,-29944,-5708,-4702,-29966,-6095,-29976,-29979,
-29977,-29978,-29978,-29979,-29979,-29980,-29983,-29982,-29982,-29977,-29990,
-29991]} 1. d4 {[%emt 0:00:03]} e6 {[%emt 0:00:43]} 2. c4 {[%emt 0:00:21]} Nf6
{[%emt 0:00:33]} 3. Nf3 {[%emt 0:00:12]} d5 {[%emt 0:01:34][%cal Yd7d5,Yd5c4]}
4. g3 {[%emt 0:00:09]} dxc4 {[%emt 0:00:40]} 5. Bg2 {[%emt 0:00:07]} Bb4+ {
[%emt 0:01:17]} 6. Bd2 {[%emt 0:00:14]} c5 {[%emt 0:00:28] E04: Open Catalan:
5 Nf3.} 7. dxc5 {[%emt 0:02:18]} Bxc5 {[%emt 0:00:21]} 8. Qa4+ {[%emt 0:01:39]}
Nbd7 {[%emt 0:00:15] The position is equal.} 9. Qxc4 {[%emt 0:00:00]} b5 {
[%emt 0:01:34]} 10. Qh4 {[%emt 0:02:30]} Bb7 {[%emt 0:01:02]} 11. O-O {[%emt 0:
01:22]} O-O {[%emt 0:02:23] [#]} 12. a4 $146 {[%emt 0:03:14]} ({Predecessor:} 
12. Nc3 a6 13. Rad1 Be7 14. Qh3 Rc8 15. Bg5 h6 16. Bxf6 Bxf6 17. Nd4 Qb6 18. e3
{1-0 (44) Kozul,Z (2602)-Saric,A (2597) Porec 2016}) 12... a6 {[%emt 0:01:57]}
13. Na3 {[%emt 0:04:47]} (13. axb5 $11 axb5 14. Rxa8 Qxa8 15. Bb4) 13... Be7 {
[%emt 0:09:05]} 14. Bb4 {[%emt 0:05:24]} bxa4 {[%emt 0:02:11]} 15. Rfd1 {
[%emt 0:06:38]} Bxb4 {[%emt 0:01:34]} 16. Qxb4 {[%emt 0:00:16]} Qb6 $36 {
[%emt 0:00:35] Black has the initiative.} 17. Qxa4 {[%emt 0:00:00]} Nc5 {
[%emt 0:01:45]} (17... Qxb2 18. Rab1 Qc3 19. Rxb7 $16) 18. Qh4 {[%emt 0:05:49]}
(18. Qf4 $11 {keeps the balance.}) 18... Nce4 $1 $17 {[%emt 0:00:00]} (18...
Qxb2 $6 19. Rdb1 Qc3 20. Nc4 Bxf3 21. Bxf3 $15) 19. g4 {[%emt 0:00:00] [#]} (
19. Nd4 $2 Rfd8 20. e3 (20. Nc4 $2 Qc5 $19) 20... Qxb2 $19) (19. Rf1 $142)
19... h6 {[%emt 0:01:14]} (19... Qxb2 20. g5 $16) (19... Nxg4 $1 $17 {[%cal
Re4f2]} 20. Nc4 (20. Qxg4 $2 Qxf2+ 21. Kh1 Qxe2 $19) (20. Ng5 Qxf2+) 20...
Qxf2+ 21. Qxf2 Ngxf2) 20. Nc4 $15 {[%emt 0:02:14]} Qc5 {[%emt 0:00:00]
Strongly threatening ...g5.} 21. Nce5 {[%emt 0:09:13]} Rad8 {[%emt 0:00:00]}
22. Rdc1 {[%emt 0:02:09]} Qb6 {[%emt 0:01:34]} 23. Nc4 {[%emt 0:03:36]} Qa7 {
[%emt 0:01:03] Black is more active.} 24. g5 $2 {[%emt 0:02:30]} (24. e3 $15)
24... Nxg5 $19 {[%emt 0:16:41]} 25. Nxg5 {[%emt 0:06:02]} Bxg2 {[%emt 0:00:00]}
(25... hxg5 26. Qxg5 Rd4 27. h3 $15) 26. Kxg2 {[%emt 0:00:32]} Rd4 {[%emt 0:00:
16]} (26... hxg5 27. Qxg5 Rd5 28. Qe3 $15) 27. Qh3 {[%emt 0:05:00] And now Nf3
would win.} hxg5 {[%emt 0:02:09] Really sharp!} 28. Ne3 {[%emt 0:00:00]
Inhibits Rg4+.} (28. Kf1) 28... Rh4 {[%emt 0:04:59]} 29. Qg3 {[%emt 0:00:00]}
Rf4 {[%emt 0:01:14] Threatens to win with ...Ne4.} 30. Rc4 {[%emt 0:00:00]} Nh5
{[%emt 0:03:47]} (30... Ne4 $19 31. Rxe4 Rxe4 32. Qxg5 Qb7) 31. Qxg5 $17 {
[%emt 0:00:56] [#]} Rxc4 {[%emt 0:01:42]} (31... Qb7+ $1 $17 32. Kg1 Qxb2) 32.
Nxc4 $15 {[%emt 0:00:11]} g6 {[%emt 0:01:38] ...Qd4 is the strong threat.} 33.
Ra3 $2 {[%emt 0:01:31] White is on the road to losing.} (33. Rd1 $11 {and
White stays safe.}) 33... Qd4 $19 {[%emt 0:01:22]} 34. Nd2 {[%emt 0:04:19]} (
34. Ne5 Nf4+ 35. Kg3 Nxe2+ 36. Kg2) 34... Nf4+ {[%emt 0:01:15]} 35. Kf3 {
[%emt 0:00:03]} e5 {[%emt 0:00:43]} ({Weaker is} 35... Qxd2 36. Qxf4 Qxb2 37.
Ra4 $17) ({Worse is} 35... Nh3 36. Qe3 Qh4 37. Kg2 $17) 36. Ne4 {[%emt 0:01:01]
} f5 {[%emt 0:00:58][%cal Yf7f5,Yf5e4]} 37. Nc3 {[%emt 0:00:37]} Qc4 {[%emt 0:
01:39] aiming for ...Qc6+.} 38. Kg3 {[%emt 0:00:53]} Qc6 {[%emt 0:00:00]} 39.
e4 {[%emt 0:01:40]} (39. f3 $142 Qb6 40. Ra1) 39... fxe4 {[%emt 0:00:00] ( -> .
..Nh5+)} ({Not} 39... Qb6 40. Nd5 Nxd5 41. exd5 $11) 40. Qxe5 {[%emt 0:01:09]}
Qd7 {[%emt 0:00:23][%csl Gf4][%cal Rd7h3]} 41. Qxf4 {[%emt 0:00:00]} Qd3+ {
[%emt 0:36:08]} 42. Qe3 {[%emt 0:00:00]} Rf3+ {[%emt 0:00:00]} 43. Kg2 {
[%emt 0:00:00]} Rxe3 {[%emt 0:00:00]} 44. fxe3 {[%emt 0:00:00] Endgame KQ-KRN}
Qd2+ {[%emt 0:00:00]} 45. Kf1 {[%emt 0:00:00]} Qc1+ {[%emt 0:00:00] Black
mates.} 46. Nd1 {[%emt 0:00:00]} Qxd1+ {[%emt 0:00:00]} 47. Kf2 {[%emt 0:00:00]
} Qd2+ {[%emt 0:00:00]} 48. Kg3 {[%emt 0:00:00]} Qxb2 {[%emt 0:00:00]} 49. Rxa6
{[%emt 0:00:00]} Qe5+ {[%emt 0:00:00]} 50. Kg2 {[%emt 0:00:00]} Qg5+ {[%emt 0:
00:00]} 51. Kf1 {[%emt 0:00:00]} Qb5+ {[%emt 0:00:00] Weighted Error Value:
White=0.89/Black=0.14 (very precise)} 0-1